fUST/lending_fUST_20250210
["ID","MTS","AMOUNT","RATE_DAILY","PERIOD"]
[352536650,1739157036751,-500.0,0.00010958,2]
[352536651,1739157036763,-506.64571154,0.00010958,2]
[352536652,1739157036776,-500.0,0.00010958,2]
[352536653,1739157036791,-648.95454498,0.00010958,2]
[352536654,1739157036805,-500.64160264,0.00010958,2]
[352536655,1739157036821,-501.88439884,0.00010958,2]
[352536656,1739157036834,-500.0,0.00010958,2]
[352536657,1739157036846,-500.0,0.00010958,2]
[352536658,1739157036860,-454.97614596,0.00010958,2]
[352536659,1739157036872,-1665.25,0.00010958,2]
[352536660,1739157036883,-505.88812864,0.00010958,2]
[352536661,1739157036895,-500.0,0.00010958,2]
[352536662,1739157036907,-246.95252047,0.00010958,2]
[352536663,1739157036919,-503.53245811,0.00010958,2]
[352536664,1739157036931,-505.59813335,0.00010958,2]
[352536665,1739157036943,-501.67206872,0.00010958,2]
[352536666,1739157036955,-500.0,0.00010958,2]
[352536667,1739157036966,-502.87640089,0.00010958,2]
[352536668,1739157036978,-500.0,0.00010958,2]
[352536669,1739157036990,-500.0,0.00010958,2]
[352536670,1739157037001,-502.57310314,0.00010958,2]
[352536671,1739157037012,-500.0,0.00010958,2]
[352536672,1739157037024,-502.32346852,0.00010958,2]
[352536673,1739157037036,-500.0,0.00010958,2]
[352536674,1739157037049,-500.0,0.00010958,2]
[352536675,1739157037060,-799.58,0.00010958,2]
[352536676,1739157037071,-503.67107063,0.00010958,2]
[352536677,1739157037083,-500.26325349,0.00010958,2]
[352536678,1739157037094,-500.0,0.00010958,2]
[352536679,1739157037105,-500.0,0.00010958,2]
[352536680,1739157037116,-500.0,0.00010958,2]
[352536681,1739157037127,-500.0,0.00010958,2]
[352536682,1739157037139,-6458.16,0.00010958,2]
[352536683,1739157037151,-500.0,0.00010958,2]
[352536684,1739157037162,-500.0,0.00010958,2]
[352536685,1739157037174,-500.0,0.00010958,2]
[352536686,1739157037185,-506.24723342,0.00010958,2]
[352536687,1739157037197,-500.35930866,0.00010958,2]
[352536688,1739157037208,-500.0,0.00010958,2]
[352536689,1739157037220,-597.05,0.00010958,2]
[352536690,1739157037232,-500.0,0.00010958,2]
[352536691,1739157037243,-500.0,0.00010958,2]
[352536692,1739157037255,-500.82801652,0.00010958,2]
[352536693,1739157037266,-238.72555005,0.00010958,2]
[352536694,1739157037277,-500.0,0.00010958,2]
[352536695,1739157037288,-500.0,0.00010958,2]
[352536696,1739157037299,-500.0,0.00010958,2]
[352536697,1739157037311,-500.0,0.00010958,2]
[352536698,1739157037322,-503.35012541,0.00010958,2]
[352536699,1739157037334,-500.0,0.00010958,2]
[352536700,1739157037345,-589.14,0.00010958,2]
[352536701,1739157037357,-500.0,0.00010958,2]
[352536702,1739157037368,-501.45163344,0.00010958,2]
[352536703,1739157037380,-500.0,0.00010958,2]
[352536704,1739157037391,-500.0,0.00010958,2]
[352536705,1739157037403,-500.0,0.00010958,2]
[352536706,1739157037415,-3190.8,0.00010958,2]
[352536707,1739157037427,-500.0,0.00010958,2]
[352536708,1739157037439,-505.70606624,0.00010958,2]
[352536709,1739157037450,-539.58,0.00010958,2]
[352536710,1739157037462,-500.0,0.00010958,2]
[352536711,1739157037474,-413.12929157,0.00010958,2]
[352536712,1739157037612,-500.0,0.00010958,2]
[352536713,1739157037626,-500.0,0.00010958,2]
[352536714,1739157037636,-2682.37,0.00010958,2]
[352536715,1739157037646,-529.36359471,0.00010958,2]
[352536716,1739157037655,-500.0,0.00010958,2]
[352536717,1739157037666,-500.0,0.00010958,2]
[352536718,1739157037675,-500.45658036,0.00010958,2]
[352536719,1739157037685,-500.0,0.00010958,2]
[352536720,1739157037695,-500.0,0.00010958,2]
[352536721,1739157037705,-500.0,0.00010958,2]
[352536722,1739157037716,-500.47737271,0.00010958,2]
[352536723,1739157037725,-500.0,0.00010958,2]
[352536724,1739157037735,-682.52,0.00010958,2]
[352536725,1739157037745,-500.0,0.00010958,2]
[352536726,1739157037755,-502.1783052,0.00010958,2]
[352536727,1739157037765,-500.0,0.00010958,2]
[352536728,1739157037775,-511.67261381,0.00010958,2]
[352536729,1739157037785,-500.0,0.00010958,2]
[352536730,1739157037794,-500.0,0.00010958,2]
[352536731,1739157037807,-500.0,0.00010958,2]
[352536732,1739157037820,-2927.1,0.00010958,2]
[352536734,1739157037830,-500.0,0.00010958,2]
[352536736,1739157037839,-500.0,0.00010958,2]
[352536738,1739157037851,-504.88078608,0.00010958,2]
[352536740,1739157037861,-1676.49,0.00010958,2]
[352536741,1739157037870,-504.31595547,0.00010958,2]
[352536742,1739157037881,-500.0,0.00010958,2]
[352536743,1739157037890,-500.0,0.00010958,2]
[352536744,1739157037901,-500.0,0.00010958,2]
[352536745,1739157037910,-500.51186355,0.00010958,2]
[352536746,1739157037919,-500.0,0.00010958,2]
[352536747,1739157037929,-500.0,0.00010958,2]
[352536748,1739157037938,-500.94056625,0.00010958,2]
[352536749,1739157037947,-500.0,0.00010958,2]
[352536750,1739157037957,-511.85546948,0.00010958,2]
[352536751,1739157037967,-558.40571756,0.00010958,2]
[352536752,1739157037977,-500.0,0.00010958,2]
[352536753,1739157037987,-931.74,0.00010958,2]
[352536754,1739157037996,-500.32092833,0.00010958,2]
[352536755,1739157038006,-1098.14,0.00010958,2]
[352536757,1739157038016,-500.0,0.00010958,2]
[352536759,1739157038025,-500.0,0.00010958,2]
[352536761,1739157038035,-10232.11,0.00010958,2]
[352536762,1739157038044,-18681.61,0.00010958,2]
[352536763,1739157038053,-500.0,0.00010958,2]
[352536764,1739157038064,-500.0,0.00010958,2]
[352536765,1739157038074,-500.0,0.00010958,2]
[352536766,1739157038083,-500.0,0.00010958,2]
[352536767,1739157038092,-500.0,0.00010958,2]
[352536768,1739157038102,-500.0,0.00010958,2]
[352536769,1739157038111,-505.09556162,0.00010958,2]
[352536770,1739157038121,-500.0,0.00010958,2]
[352536771,1739157038131,-504.3331343,0.00010958,2]
[352536772,1739157038140,-500.0,0.00010958,2]
[352536773,1739157038151,-500.0,0.00010958,2]
[352536774,1739157038160,-1035.6,0.00010958,2]
[352536776,1739157038170,-503.77414422,0.00010958,2]
[352536778,1739157038180,-501.18437889,0.00010958,2]
[352536780,1739157038189,-500.0,0.00010958,2]
[352536782,1739157038199,-1217.71,0.00010958,2]
[352536784,1739157038208,-622.82130373,0.00010958,2]
[352536786,1739157038218,-500.0,0.00010958,2]
[352536788,1739157038227,-548.06105943,0.00010958,2]
[352536790,1739157038236,-500.9474064,0.00010958,2]
[352536792,1739157038246,-500.0,0.00010958,2]
[352536794,1739157038255,-500.0,0.00010958,2]
[352536796,1739157038265,-500.0,0.00010958,2]
[352536798,1739157038274,-500.0,0.00010958,2]
[352536800,1739157038284,-500.0,0.00010958,2]
[352536802,1739157038294,-500.0,0.00010958,2]
[352536804,1739157038303,-500.0,0.00010958,2]
[352536806,1739157038313,-8511.14,0.00010958,2]
[352536808,1739157038322,-8511.14,0.00010958,2]
[352536810,1739157038332,-8511.14,0.00010958,2]
[352536812,1739157038342,-8511.14,0.00010958,2]
[352536814,1739157038352,-521.94555149,0.00010958,2]
[352536816,1739157038361,-8511.14,0.00010958,2]
[352536818,1739157038370,-8511.14,0.00010958,2]
[352536820,1739157038380,-505.03,0.00010958,2]
[352536822,1739157038389,-8511.14,0.00010958,2]
[352536824,1739157038399,-8511.14,0.00010958,2]
[352536826,1739157038409,-8511.14,0.00010958,2]
[352536828,1739157038418,-500.0,0.00010958,2]
[352536830,1739157038427,-505.73,0.00010958,2]
[352536832,1739157038436,-8511.14,0.00010958,2]
[352536834,1739157038446,-500.0,0.00010958,2]
[352536836,1739157038455,-8511.14,0.00010958,2]
[352536838,1739157038465,-8511.14,0.00010958,2]
[352536840,1739157038475,-500.49904757,0.00010958,2]
[352536842,1739157038484,-8511.14,0.00010958,2]
[352536844,1739157038494,-8511.14,0.00010958,2]
[352536846,1739157038503,-8511.14,0.00010958,2]
[352536848,1739157038512,-501.67826355,0.00010958,2]
[352536850,1739157038522,-8511.14,0.00010958,2]
[352536852,1739157038531,-8511.14,0.00010958,2]
[352536855,1739157038540,-500.37701116,0.00010958,2]
[352536858,1739157038549,-500.0,0.00010958,2]
[352536860,1739157038558,-500.0,0.00010958,2]
[352536862,1739157038569,-500.0,0.00010958,2]
[352536865,1739157038579,-500.0,0.00010958,2]
[352536869,1739157038589,-500.0,0.00010958,2]
[352536871,1739157038598,-500.51471044,0.00010958,2]
[352536873,1739157038608,-1278.35,0.00010958,2]
[352536875,1739157038617,-500.0,0.00010958,2]
[352536877,1739157038627,-490.0,0.00010958,2]
[352536879,1739157038636,-500.0,0.00010958,2]
[352536881,1739157038646,-500.0,0.00010958,2]
[352536883,1739157038655,-501.47382151,0.00010958,2]
[352536885,1739157038665,-500.0,0.00010958,2]
[352536887,1739157038675,-500.0,0.00010958,2]
[352536889,1739157038684,-500.0,0.00010958,2]
[352536891,1739157038694,-500.0,0.00010958,2]
[352536893,1739157038704,-1105.55,0.00010958,2]
[352536895,1739157038715,-500.0,0.00010958,2]
[352536896,1739157038724,-501.99338742,0.00010958,2]
[352536897,1739157038733,-500.0,0.00010958,2]
[352536898,1739157038742,-500.0,0.00010958,2]
[352536899,1739157038751,-500.0,0.00010958,2]
[352536900,1739157038760,-500.0,0.00010958,2]
[352536901,1739157038769,-505.59589454,0.00010958,2]
[352536902,1739157038779,-500.95478324,0.00010958,2]
[352536903,1739157038788,-500.0,0.00010958,2]
[352536904,1739157038797,-500.0,0.00010958,2]
[352536905,1739157038807,-500.0,0.00010958,2]
[352536906,1739157038820,-500.0,0.00010958,2]
[352536907,1739157038830,-503.28355774,0.00010958,2]
[352536908,1739157038839,-1800.75,0.00010958,2]
[352536909,1739157038849,-500.0,0.00010958,2]
[352536910,1739157038859,-500.0,0.00010958,2]
[352536911,1739157038869,-500.0,0.00010958,2]
[352536912,1739157038878,-500.0,0.00010958,2]
[352536913,1739157038889,-599.76,0.00010958,2]
[352536914,1739157038899,-500.0,0.00010958,2]
[352536915,1739157038908,-500.0,0.00010958,2]
[352536916,1739157038918,-500.86749186,0.00010958,2]
[352536917,1739157038927,-500.0,0.00010958,2]
[352536919,1739157038937,-693.92,0.00010958,2]
[352536921,1739157038946,-501.24250513,0.00010958,2]
[352536923,1739157038956,-500.0,0.00010958,2]
[352536925,1739157038965,-500.0,0.00010958,2]
[352536927,1739157038974,-500.0,0.00010958,2]
[352536929,1739157038984,-500.0,0.00010958,2]
[352536931,1739157038993,-765.33,0.00010958,2]
[352536933,1739157039003,-500.0,0.00010958,2]
[352536936,1739157039012,-500.0,0.00010958,2]
[352536938,1739157039022,-1709.66,0.00010958,2]
[352536940,1739157039031,-502.9001617,0.00010958,2]
[352536942,1739157039041,-500.0,0.00010958,2]
[352536944,1739157039050,-501.94375795,0.00010958,2]
[352536946,1739157039059,-500.0,0.00010958,2]
[352536948,1739157039070,-503.72414827,0.00010958,2]
[352536950,1739157039080,-502.95762008,0.00010958,2]
[352536951,1739157039089,-500.0,0.00010958,2]
[352536954,1739157039099,-500.0,0.00010958,2]
[352536956,1739157039109,-500.0,0.00010958,2]
[352536958,1739157039119,-501.68150634,0.00010958,2]
[352536960,1739157039128,-647.22,0.00010958,2]
[352536962,1739157039138,-500.0,0.00010958,2]
[352536964,1739157039148,-910.77,0.00010958,2]
[352536966,1739157039158,-500.0,0.00010958,2]
[352536968,1739157039167,-500.0,0.00010958,2]
[352536970,1739157039177,-853.86,0.00010958,2]
[352536972,1739157039186,-501.4865438,0.00010958,2]
[352536974,1739157039195,-500.0,0.00010958,2]
[352536976,1739157039204,-500.0,0.00010958,2]
[352536978,1739157039213,-500.0,0.00010958,2]
[352536979,1739157039222,-500.0,0.00010958,2]
[352536981,1739157039231,-500.0,0.00010958,2]
[352536983,1739157039242,-683.67,0.00010958,2]
[352536986,1739157039252,-500.0,0.00010958,2]
[352536987,1739157039262,-500.0,0.00010958,2]
[352536990,1739157039271,-500.0,0.00010958,2]
[352536991,1739157039280,-669.08,0.00010958,2]
[352536994,1739157039290,-372.70068128,0.00010958,2]
[352536996,1739157039299,-503.7456712,0.00010958,2]
[352536998,1739157039309,-500.0,0.00010958,2]
[352536999,1739157039321,-500.0,0.00010958,2]
[352537001,1739157039331,-500.0,0.00010958,2]
[352537003,1739157039340,-500.0,0.00010958,2]
[352537005,1739157039349,-500.0,0.00010958,2]
[352537007,1739157039359,-509.57764156,0.00010958,2]
[352537009,1739157039368,-503.25194849,0.00010958,2]
[352537011,1739157039377,-501.32474235,0.00010958,2]
[352537013,1739157039387,-500.0,0.00010958,2]
[352537015,1739157039398,-500.0,0.00010958,2]
[352537017,1739157039408,-500.0,0.00010958,2]
[352537020,1739157039418,-501.11468039,0.00010958,2]
[352537022,1739157039428,-500.0,0.00010958,2]
[352537024,1739157039438,-500.0,0.00010958,2]
[352537026,1739157039448,-500.0,0.00010958,2]
[352537027,1739157039458,-2146.0,0.00010958,2]
[352537029,1739157039467,-500.0,0.00010958,2]
[352537031,1739157039476,-502.81748807,0.00010958,2]
[352537033,1739157039485,-502.10990589,0.00010958,2]
[352537035,1739157039495,-503.70163895,0.00010958,2]
[352537037,1739157039504,-500.0,0.00010958,2]
[352537039,1739157039514,-503.34223926,0.00010958,2]
[352537041,1739157039523,-441.80698812,0.00010958,2]
[352537043,1739157039532,-501.4403947,0.00010958,2]
[352537045,1739157039541,-500.0,0.00010958,2]
[352537047,1739157039551,-502.25709858,0.00010958,2]
[352537049,1739157039560,-500.0,0.00010958,2]
[352537051,1739157039571,-717.2,0.00010958,2]
[352537053,1739157039580,-500.0,0.00010958,2]
[352537055,1739157039590,-502.41167419,0.00010958,2]
[352537057,1739157039599,-501.18232424,0.00010958,2]
[352537059,1739157039608,-500.0,0.00010958,2]
[352537061,1739157039617,-500.0,0.00010958,2]
[352537063,1739157039626,-500.0,0.00010958,2]
[352537065,1739157039635,-3892.37,0.00010958,2]
[352537067,1739157039645,-500.0,0.00010958,2]
[352537069,1739157039654,-500.0,0.00010958,2]
[352537071,1739157039664,-502.72351249,0.00010958,2]
[352537073,1739157039673,-500.0,0.00010958,2]
[352537075,1739157039683,-500.0,0.00010958,2]
[352537077,1739157039693,-500.0,0.00010958,2]
[352537079,1739157039702,-500.0,0.00010958,2]
[352537081,1739157039712,-500.0,0.00010958,2]
[352537083,1739157039722,-500.0,0.00010958,2]
[352537085,1739157039732,-500.39372888,0.00010958,2]
[352537087,1739157039741,-500.0,0.00010958,2]
[352537089,1739157039750,-500.0,0.00010958,2]
[352537091,1739157039760,-799.16,0.00010958,2]
[352537093,1739157039769,-500.0,0.00010958,2]
[352537095,1739157039779,-3593.75,0.00010959,2]
[352537098,1739157039789,-2994.8,0.00010959,2]
[352537100,1739157039799,-2495.66,0.00010959,2]
[352537114,1739157039902,-2079.72,0.00010959,2]
[352537116,1739157039913,-1733.1,0.00010959,2]
[352537118,1739157039923,-1444.25,0.00010959,2]
[352537120,1739157039933,-1203.54,0.00010959,2]
[352537122,1739157039943,-1002.95,0.00010959,2]
[352537124,1739157039952,-648.37,0.00010994,2]
[352537126,1739157039963,-648.37,0.00010994,2]
[352537128,1739157039973,-500.0,0.00010994,2]
[352537130,1739157039983,-500.0,0.00010994,2]
[352537132,1739157039994,-8511.14,0.00010994,2]
[352537134,1739157040003,-8511.14,0.00010994,2]
[352537136,1739157040013,-164.70151804,0.00010995,2]
[352537138,1739157040022,-648.37,0.00011093,2]
[352537140,1739157040032,-648.37,0.00011093,2]
[352537141,1739157040041,-648.37,0.00011093,2]
[352537143,1739157040052,-500.0,0.00011093,2]
[352537145,1739157040063,-500.0,0.00011093,2]
[352537147,1739157040074,-500.0,0.00011093,2]
[352537149,1739157040083,-8511.14,0.00011093,2]
[352537151,1739157040093,-8511.14,0.00011093,2]
[352537153,1739157040102,-8511.14,0.00011093,2]
[352537155,1739157040112,-8511.14,0.00011093,2]
[352537157,1739157040121,-8511.17083599,0.00011093,2]
[352537159,1739157040130,-500.0,0.00011094,2]
[352537161,1739157040140,-496.97610308,0.00011094,2]
[352537163,1739157040149,-648.37,0.00011094,2]
[352537165,1739157040159,-648.37,0.00011094,2]
[352537166,1739157040168,-648.37,0.00011094,2]
[352537167,1739157040178,-648.37,0.00011094,2]
[352537168,1739157040188,-648.37,0.00011094,2]
[352537169,1739157040197,-648.38461558,0.00011094,2]
[352537170,1739157040207,-500.0,0.00011094,2]
[352537171,1739157040217,-500.0,0.00011094,2]
[352537172,1739157040226,-500.0,0.00011094,2]
[352537173,1739157040237,-500.0,0.00011094,2]
[352537174,1739157040246,-500.0,0.00011094,2]
[352537175,1739157040256,-327.53514839,0.00011094,2]
[352537176,1739157040266,-500.0,0.00011094,2]
[352537177,1739157040276,-500.0,0.00011094,2]
[352537179,1739157040286,-647.10980988,0.00011094,2]
[352537181,1739157040295,-190.90011446,0.00011094,2]
[352537183,1739157040305,-433.63008012,0.00011094,2]
[352537185,1739157040315,-500.0,0.00011095,2]
[352537187,1739157040324,-500.0,0.00011095,2]
[352537188,1739157040333,-500.0,0.00011095,2]
[352537190,1739157040343,-500.0,0.00011095,2]
[352537192,1739157040353,-500.0,0.00011095,2]
[352537194,1739157040362,-500.0,0.00011095,2]
[352537196,1739157040372,-500.0,0.00011095,2]
[352537198,1739157040382,-500.0,0.00011095,2]
[352537199,1739157040391,-500.0,0.00011095,2]
[352537200,1739157040401,-271.16035906,0.00011095,2]
[352537201,1739157040410,-501.49754619,0.00011095,2]
[352537202,1739157040420,-501.91276157,0.00011095,2]
[352537203,1739157040430,-500.0,0.00011095,2]
[352537204,1739157040439,-500.0,0.00011095,2]
[352537205,1739157040450,-500.0,0.00011095,2]
[352537206,1739157040460,-500.0,0.00011095,2]
[352537207,1739157040470,-501.14462129,0.00011095,2]
[352537208,1739157040479,-500.0,0.00011095,2]
[352537209,1739157040489,-500.0,0.00011095,2]
[352537210,1739157040499,-500.0,0.00011095,2]
[352537211,1739157040508,-500.0,0.00011095,2]
[352537212,1739157040518,-500.0,0.00011095,2]
[352537213,1739157040528,-500.0,0.00011095,2]
[352537214,1739157040537,-503.83300168,0.00011095,2]
[352537215,1739157040547,-502.31177447,0.00011095,2]
[352537216,1739157040557,-500.0,0.00011095,2]
[352537217,1739157040568,-502.26483117,0.00011095,2]
[352537218,1739157040577,-500.0,0.00011095,2]
[352537219,1739157040587,-507.20029289,0.00011095,2]
[352537220,1739157040596,-500.0,0.00011095,2]
[352537221,1739157040606,-583.38473543,0.00011095,2]
[352537222,1739157040616,-500.0,0.00011095,2]
[352537223,1739157040626,-500.0,0.00011095,2]
[352537224,1739157040636,-362.33072118,0.00011095,2]
[352537225,1739157040645,-500.0,0.00011095,2]
[352537226,1739157040655,-500.0,0.00011095,2]
[352537227,1739157040665,-500.0,0.00011095,2]
[352537228,1739157040674,-502.13170062,0.00011095,2]
[352537229,1739157040684,-506.02512467,0.00011095,2]
[352537230,1739157040695,-500.0,0.00011095,2]
[352537231,1739157040704,-552.56,0.00011095,2]
[352537232,1739157040714,-500.0,0.00011095,2]
[352537233,1739157040726,-500.0,0.00011095,2]
[352537234,1739157040738,-500.0,0.00011095,2]
[352537235,1739157040748,-500.0,0.00011095,2]
[352537236,1739157040758,-519.99014159,0.00011095,2]
[352537237,1739157040768,-551.34293498,0.00011095,2]
[352537238,1739157040777,-500.0,0.00011095,2]
[352537239,1739157040787,-500.0,0.00011095,2]
[352537240,1739157040796,-500.0,0.00011095,2]
[352537241,1739157040806,-508.42174811,0.00011095,2]
[352537242,1739157040823,-500.0,0.00011095,2]
[352537243,1739157040834,-508.73386116,0.00011095,2]
[352537244,1739157040844,-507.7489569,0.00011095,2]
[352537245,1739157040854,-500.0,0.00011095,2]
[352537246,1739157040864,-500.0,0.00011095,2]
[352537247,1739157040875,-517.75994378,0.00011095,2]
[352537248,1739157040888,-503.57995618,0.00011095,2]
[352537249,1739157040897,-500.0,0.00011095,2]
[352537250,1739157040906,-500.0,0.00011095,2]
[352537251,1739157040915,-500.0,0.00011095,2]
[352537252,1739157040926,-500.0,0.00011095,2]
[352537253,1739157040935,-500.0,0.00011095,2]
[352537254,1739157040944,-500.0,0.00011095,2]
[352537255,1739157040953,-608.45171411,0.00011095,2]
[352537256,1739157040963,-500.61865282,0.00011095,2]
[352537257,1739157040972,-506.38526224,0.00011095,2]
[352537258,1739157040983,-502.7303801,0.00011095,2]
[352537259,1739157040994,-504.02135416,0.00011095,2]
[352537260,1739157041004,-500.0,0.00011095,2]
[352537261,1739157041014,-500.0,0.00011095,2]
[352537262,1739157041024,-500.0,0.00011095,2]
[352537263,1739157041034,-543.39,0.00011095,2]
[352537264,1739157041044,-500.0,0.00011095,2]
[352537265,1739157041053,-503.03256543,0.00011095,2]
[352537266,1739157041064,-229.42691214,0.00011095,2]
[352537267,1739157041075,-508.71959938,0.00011095,2]
[352537268,1739157041085,-504.23848509,0.00011095,2]
[352537269,1739157041095,-505.00578588,0.00011095,2]
[352537270,1739157041105,-315.27624964,0.00011095,2]
[352537271,1739157041114,-500.0,0.00011095,2]
[352537272,1739157041124,-500.0,0.00011095,2]
[352537273,1739157041134,-500.0,0.00011095,2]
[352537274,1739157041145,-507.42460473,0.00011095,2]
[352537275,1739157041154,-505.54738501,0.00011095,2]
[352537276,1739157041164,-500.0,0.00011095,2]
[352537277,1739157041174,-503.12862861,0.00011095,2]
[352537278,1739157041184,-500.0,0.00011095,2]
[352537279,1739157041194,-505.65359544,0.00011095,2]
[352537280,1739157041203,-501.41743544,0.00011095,2]
[352537281,1739157041212,-250.36857721,0.00011095,2]
[352537282,1739157041221,-503.5,0.00011095,2]
[352537283,1739157041231,-506.3956885,0.00011095,2]
[352537284,1739157041240,-500.0,0.00011095,2]
[352537285,1739157041250,-501.35476595,0.00011095,2]
[352537286,1739157041260,-501.51950854,0.00011095,2]
[352537287,1739157041270,-503.98286715,0.00011095,2]
[352537288,1739157041280,-382.88794516,0.00011095,2]
[352537289,1739157041290,-503.6205113,0.00011095,2]
[352537290,1739157041299,-500.0,0.00011095,2]
[352537291,1739157041309,-500.0,0.00011095,2]
[352537292,1739157041322,-500.0,0.00011095,2]
[352537293,1739157041331,-500.0,0.00011095,2]
[352537294,1739157041341,-503.5231133,0.00011095,2]
[352537295,1739157041349,-500.0,0.00011095,2]
[352537296,1739157041359,-500.0,0.00011095,2]
[352537297,1739157041368,-500.0,0.00011095,2]
[352537298,1739157041378,-507.29445469,0.00011095,2]
[352537299,1739157041387,-501.32671544,0.00011095,2]
[352537300,1739157041396,-500.0,0.00011095,2]
[352537301,1739157041413,-500.0,0.00011095,2]
[352537302,1739157041422,-505.74731868,0.00011095,2]
[352537303,1739157041432,-500.0,0.00011095,2]
[352537304,1739157041442,-500.0,0.00011095,2]
[352537305,1739157041452,-500.0,0.00011095,2]
[352537306,1739157041461,-506.45582172,0.00011095,2]
[352537307,1739157041471,-500.0,0.00011095,2]
[352537308,1739157041481,-500.0,0.00011095,2]
[352537309,1739157041491,-500.0,0.00011095,2]
[352537310,1739157041500,-500.0,0.00011095,2]
[352537311,1739157041509,-500.0,0.00011095,2]
[352537312,1739157041519,-500.0,0.00011095,2]
[352537313,1739157041528,-500.0,0.00011095,2]
[352537314,1739157041537,-500.0,0.00011095,2]
[352537315,1739157041546,-501.27296929,0.00011095,2]
[352537316,1739157041555,-500.0,0.00011095,2]
[352537317,1739157041567,-500.04211943,0.00011095,2]
[352537318,1739157041576,-673.68,0.00011095,2]
[352537319,1739157041585,-500.0,0.00011095,2]
[352537320,1739157041594,-501.10513594,0.00011095,2]
[352537321,1739157041603,-500.0,0.00011095,2]
[352537322,1739157041613,-500.0,0.00011095,2]
[352537323,1739157041623,-534.52,0.00011095,2]
[352537324,1739157041632,-501.94370888,0.00011095,2]
[352537325,1739157041642,-500.0,0.00011095,2]
[352537326,1739157041651,-500.0,0.00011095,2]
[352537327,1739157041661,-500.0,0.00011095,2]
[352537328,1739157041670,-500.0,0.00011095,2]
[352537329,1739157041680,-500.0,0.00011095,2]
[352537330,1739157041690,-500.0,0.00011095,2]
[352537331,1739157041700,-477.04297228,0.00011095,2]
[352537332,1739157041710,-500.0,0.00011095,2]
[352537333,1739157041719,-504.18997682,0.00011095,2]
[352537334,1739157041729,-503.52056844,0.00011095,2]
[352537335,1739157041739,-500.0,0.00011095,2]
[352537336,1739157041748,-500.0,0.00011095,2]
[352537337,1739157041757,-504.5101064,0.00011095,2]
[352537338,1739157041767,-500.0,0.00011095,2]
[352537339,1739157041777,-500.0,0.00011095,2]
[352537340,1739157041786,-500.0,0.00011095,2]
[352537341,1739157041796,-500.0,0.00011095,2]
[352537342,1739157041807,-1093.78,0.00011095,2]
[352537343,1739157041820,-519.12640074,0.00011095,2]
[352537344,1739157041830,-502.68920716,0.00011095,2]
[352537345,1739157041840,-500.0,0.00011095,2]
[352537346,1739157041850,-500.0,0.00011095,2]
[352537347,1739157041862,-479.0,0.00011095,2]
[352537348,1739157041871,-504.26442328,0.00011095,2]
[352537349,1739157041880,-500.0,0.00011095,2]
[352537350,1739157041891,-500.0,0.00011095,2]
[352537351,1739157041900,-500.0,0.00011095,2]
[352537352,1739157041910,-1665.25,0.00011095,2]
[352537353,1739157041919,-500.0,0.00011095,2]
[352537354,1739157041929,-500.0,0.00011095,2]
[352537355,1739157041938,-500.0,0.00011095,2]
[352537356,1739157041947,-500.0,0.00011095,2]
[352537357,1739157042057,-500.0,0.00011095,2]
[352537358,1739157042070,-799.58,0.00011095,2]
[352537359,1739157042079,-500.0,0.00011095,2]